bitfinex-derivatives/quotes_SOLF0:USTF0_20241212
["timestamp","ask_amount","ask_price","bid_price","bid_amount"]
[1733967710907,2.2033,226.76,226.7,12.45889823]
[1733967712604,2.2033,226.76,226.7,10.25509823]
[1733967712910,2.2033,226.76,226.71,2.2038]
[1733967713208,2.2031,226.78,226.7,10.25509823]
[1733967713716,2.7955,226.88,226.76,10.25509823]
[1733967713907,2.06,226.84,226.76,10.25509823]
[1733967714210,2.06,226.84,226.79,10.25509823]
[1733967714813,2.06,226.87,226.79,10.25509823]
[1733967715411,2.2025,226.85,226.79,12.45799823]
[1733967715813,2.06,226.87,226.79,12.45799823]
[1733967716124,2.06,226.87,226.79,10.25509823]
[1733967716915,2.2023,226.86,226.8,2.2029]
[1733967718327,2.06,226.87,226.81,2.2028]
[1733967718519,2.2022,226.88,226.81,2.2028]
[1733967718722,2.08,226.88,226.81,2.2028]
[1733967719325,2.08,226.88,226.79,10.25509823]
[1733967719326,2.2023,226.87,226.8,2.2029]
[1733967719540,2.08,226.88,226.8,2.2029]
[1733967719923,2.08,226.88,226.82,2.2027]
[1733967720523,2.08,226.88,226.8,2.7826]
[1733967720722,2.08,226.88,226.83,2.2026]
[1733967721225,4.2821,226.88,226.83,2.2026]
[1733967722131,2.08,226.88,226.83,2.2026]
[1733967723017,4.2822,226.88,226.83,2.2026]
[1733967723226,4.2822,226.88,226.8,2.7826]
[1733967723227,4.2822,226.88,226.81,2.2027]
[1733967723423,4.2822,226.88,226.8,2.7826]
[1733967724317,2.2023,226.86,226.8,2.7826]
[1733967724522,2.08,226.88,226.8,2.7826]
[1733967724928,2.2023,226.87,226.81,2.2027]
[1733967725120,2.08,226.88,226.81,2.2027]
[1733967726626,2.08,226.88,226.8,2.7826]
[1733967726827,2.08,226.88,226.8,4.9855]
[1733967727224,2.2023,226.86,226.81,6.5656951]
[1733967727730,2.2023,226.86,226.81,8.7683951]
[1733967729337,6.5656951,226.86,226.66,28.86479984]
[1733967729631,6.5656951,226.86,226.78,6.5656951]
[1733967729928,2.2027,226.82,226.78,6.5656951]
[1733967731921,6.5656951,226.86,226.78,8.7687951]
[1733967732123,2.08,226.88,226.8,6.5656951]
[1733967732323,2.08,226.88,226.82,6.5656951]
[1733967732827,2.08,226.88,226.84,6.5656951]
[1733967733232,2.08,226.88,226.84,8.7681951]
[1733967733420,2.2021,226.89,226.84,8.7681951]
[1733967734930,8.6456951,226.91,226.84,6.5656951]
[1733967735123,6.5656951,226.89,226.82,6.5656951]
[1733967735529,2.2023,226.87,226.82,8.7683951]
[1733967736433,2.2023,226.87,226.84,6.5656951]
[1733967739631,8.6456951,226.91,226.84,6.5656951]
[1733967739826,2.2021,226.89,226.84,8.7680951]
[1733967740036,8.6456951,226.91,226.84,8.7680951]
[1733967740532,6.5656951,226.87,226.71,6.11407496]
[1733967740856,6.5656951,226.75,226.68,6.5656951]
[1733967741032,8.6456951,226.75,226.68,6.5656951]
[1733967741835,2.08,226.78,226.72,6.5656951]
[1733967742028,2.08,226.79,226.72,6.5656951]
[1733967742229,2.08,226.79,226.74,6.5656951]
[1733967742825,2.08,226.79,226.76,6.5656951]
[1733967743130,2.08,226.79,226.74,2.2034]
[1733967744431,2.08,226.82,226.75,10.26386372]
[1733967745235,2.2026,226.83,226.77,2.2032]
[1733967746140,2.2027,226.82,226.77,2.2032]
[1733967746338,2.2027,226.82,226.75,12.46716372]
[1733967746735,2.2027,226.82,226.75,10.26386372]
[1733967748238,2.2027,226.82,226.77,2.2032]
[1733967750029,2.2028,226.81,226.75,10.26386372]
[1733967750236,2.08,226.84,226.73,1.3802]
[1733967750631,10.26386372,226.83,226.73,1.3802]
[1733967751837,2.1,226.82,226.73,1.3802]
[1733967752239,2.2028,226.81,226.75,2.2034]
[1733967755448,2.2029,226.8,226.74,2.2035]
[1733967755736,2.1,226.82,226.73,1.3802]
[1733967755936,2.2033,226.77,226.73,1.3802]
[1733967756537,2.2033,226.77,226.68,2.1]
[1733967756538,2.2033,226.76,226.7,2.2038]
[1733967757340,4.3032,226.77,226.71,2.2037]
[1733967757547,2.1,226.77,226.71,2.2037]
[1733967757842,2.2029,226.81,226.75,2.2034]
[1733967758040,2.1,226.81,226.72,10.26386372]
[1733967758538,4.3028,226.81,226.72,10.26386372]
[1733967759841,2.2029,226.8,226.72,10.26386372]
[1733967760347,2.2029,226.8,226.75,2.2033]
[1733967763739,2.2029,226.8,226.76,2.2033]
[1733967764345,2.1,226.81,226.71,3.526]
[1733967764346,2.1,226.81,226.71,1.426]
[1733967765247,2.2031,226.78,226.72,2.2037]
[1733967765444,2.1,226.81,226.72,2.2037]
[1733967766648,2.2032,226.77,226.72,2.2037]
[1733967767550,2.2032,226.77,226.73,2.2036]
[1733967767951,2.203,226.79,226.71,1.426]
[1733967768147,10.26386372,226.86,226.72,10.26386372]
[1733967768450,2.1,226.85,226.72,10.26386372]
[1733967768648,2.2029,226.81,226.72,10.26386372]
[1733967768848,2.1,226.85,226.72,10.26386372]
[1733967769047,2.1,226.85,226.76,2.2032]
[1733967769448,2.2027,226.83,226.76,2.2032]
[1733967769644,2.1,226.85,226.76,2.2032]
[1733967771153,2.2027,226.83,226.76,2.2032]
[1733967771352,2.1,226.85,226.76,2.2032]
[1733967772752,2.2028,226.81,226.76,2.2032]
[1733967777449,15.43349579,226.93,226.71,1.426]
[1733967777450,4.4007,227.07,226.74,2.1]
[1733967777650,6.56917495,226.94,226.86,6.56917495]
[1733967778261,2.2017,226.92,226.86,6.56917495]
[1733967778757,2.08,226.93,226.86,6.56917495]
[1733967779157,2.08,226.93,226.84,10.25326664]
[1733967779647,4.2816,226.93,226.87,2.2022]
[1733967780061,2.08,226.93,226.83,2.9044]
[1733967780657,2.2019,226.91,226.85,2.2024]
[1733967783161,2.2019,226.9,226.85,2.2024]
[1733967784658,2.08,226.93,226.85,2.2024]
[1733967784862,2.2018,226.91,226.85,2.2024]
[1733967785058,2.2018,226.91,226.86,2.2023]
[1733967788563,2.08,226.93,226.83,2.9044]
[1733967788858,10.25326664,226.89,226.77,2.08]
[1733967789159,2.2025,226.84,226.78,2.203]
[1733967789366,2.2025,226.84,226.77,7.3185294]
[1733967789563,2.2025,226.84,226.77,2.08]
[1733967790560,2.2025,226.84,226.79,2.203]
[1733967793566,10.25326664,226.86,226.76,2.2033]
[1733967793765,10.25326664,226.86,226.74,2.08]
[1733967794162,2.2028,226.81,226.75,2.2034]
[1733967794387,2.2028,226.81,226.74,2.08]
[1733967795469,2.2028,226.81,226.74,7.33971756]
[1733967795670,2.2028,226.81,226.76,2.2033]
[1733967798666,2.08,226.83,226.75,10.25326664]
[1733967798870,2.08,226.87,226.78,10.25326664]
[1733967799274,2.2025,226.84,226.81,6.56596509]
[1733967807083,5.34757771,226.93,226.83,6.56596509]
[1733967807286,8.64596509,226.92,226.86,6.56596509]
[1733967807479,2.08,226.91,226.86,6.56596509]
[1733967807979,2.08,226.91,226.81,1.439]
[1733967808182,6.56596509,226.86,226.78,6.56596509]
[1733967808383,8.62596509,226.86,226.78,6.56596509]
[1733967809382,8.62596509,226.86,226.8,6.56596509]
[1733967810683,2.2025,226.84,226.8,6.56596509]
[1733967811584,8.62596509,226.86,226.8,6.56596509]
[1733967811880,6.56596509,226.84,226.74,5.25971756]
[1733967812086,2.06,226.86,226.74,6.56596509]
[1733967812087,2.2032,226.77,226.74,6.56596509]
[1733967813182,2.2032,226.77,226.69,66.36775358]
[1733967813183,8.62596509,226.76,226.71,5.29509436]
[1733967813384,6.56596509,226.72,226.63,8.77046509]
[1733967813580,4.4047,226.86,226.65,6.56596509]
[1733967813782,6.56596509,226.76,226.69,6.56596509]
[1733967813979,2.06,226.75,226.69,6.56596509]
[1733967814579,4.2634,226.75,226.69,8.76996509]
[1733967815787,2.06,226.75,226.69,8.76996509]
[1733967815982,2.06,226.75,226.69,6.56596509]
[1733967816187,6.56596509,226.74,226.67,6.56596509]
[1733967816492,2.2036,226.73,226.67,6.56596509]
[1733967817689,2.06,226.75,226.69,6.56596509]
[1733967818688,4.2634,226.75,226.69,6.56596509]
[1733967820488,2.2035,226.74,226.69,6.56596509]
[1733967820688,2.2035,226.74,226.69,8.76986509]
[1733967822581,2.06,226.75,226.71,6.56596509]
[1733967822996,2.06,226.77,226.71,6.56596509]
[1733967824086,4.2632,226.77,226.72,2.2036]
[1733967824486,2.2032,226.77,226.72,2.2036]
[1733967824685,2.06,226.76,226.72,2.2036]
[1733967827293,2.06,226.76,226.64,2.06]
[1733967827593,6.56596509,226.75,226.69,6.56596509]
[1733967827793,2.2036,226.73,226.69,6.56596509]
[1733967828190,8.62596509,226.76,226.69,6.56596509]
[1733967828590,2.2035,226.74,226.69,8.76986509]
[1733967828793,2.06,226.76,226.71,6.56596509]
[1733967829701,2.2034,226.75,226.7,2.2038]
[1733967829997,6.56596509,226.73,226.67,6.56596509]
[1733967830193,2.2037,226.72,226.68,2.204]
[1733967833789,2.2036,226.74,226.69,8.76986509]
[1733967833994,4.2636,226.74,226.69,8.76986509]
[1733967838097,5.3936696,226.81,226.69,6.56596509]
[1733967838304,6.56596509,226.77,226.71,6.56596509]
[1733967838497,2.06,226.76,226.71,6.56596509]
[1733967839505,2.06,226.76,226.72,2.2036]
[1733967840198,4.2634,226.76,226.7,2.2038]
[1733967840403,6.56596509,226.73,226.61,5.18136356]
[1733967840600,6.56596509,226.73,226.66,6.56596509]
[1733967841102,6.56596509,226.71,226.61,5.18136356]
[1733967841305,2.06,226.7,226.64,6.56596509]
[1733967841624,2.2039,226.7,226.65,2.2043]
[1733967841812,2.06,226.71,226.66,6.56596509]
[1733967842007,2.06,226.73,226.68,6.56596509]
[1733967842403,4.2636,226.73,226.69,2.2039]
[1733967842601,4.2636,226.73,226.68,6.56596509]
[1733967843597,4.2636,226.73,226.68,8.76996509]
[1733967845204,6.56596509,226.72,226.61,5.18136356]
[1733967845400,6.56596509,226.7,226.62,6.56596509]
[1733967845996,2.2043,226.66,226.62,6.56596509]
[1733967846402,2.2044,226.65,226.62,6.56596509]
[1733967846796,2.2044,226.65,226.62,8.77056509]
[1733967846998,2.2043,226.66,226.62,8.77056509]
[1733967848405,2.06,226.7,226.64,6.56596509]
[1733967848600,2.06,226.7,226.67,6.56596509]
[1733967848804,2.06,226.71,226.69,6.56596509]
[1733967851504,2.06,226.71,226.67,6.56596509]
[1733967851911,2.06,226.71,226.68,2.204]
[1733967852100,2.06,226.71,226.6,2.06]
[1733967852308,2.06,226.71,226.64,6.56596509]
[1733967852501,2.06,226.71,226.64,8.77036509]
[1733967852808,2.06,226.71,226.64,2.2044]
[1733967853008,2.06,226.71,226.64,8.77036509]
[1733967853607,6.56596509,226.7,226.64,2.2044]
[1733967853803,2.06,226.71,226.67,8.77006509]
[1733967854103,2.06,226.73,226.67,6.56596509]
[1733967854303,2.06,226.73,226.69,6.56596509]
[1733967854701,2.06,226.73,226.71,6.56596509]
[1733967856707,2.06,226.73,226.69,6.56596509]
[1733967861909,8.62596509,226.76,226.69,6.56596509]
[1733967863714,6.56596509,226.74,226.67,6.56596509]
[1733967865713,6.56596509,226.72,226.62,5.42348527]
[1733967865919,2.06,226.71,226.64,6.56596509]
[1733967869416,2.06,226.7,226.66,6.56596509]
[1733967869618,2.06,226.7,226.64,6.56596509]
[1733967870511,2.06,226.7,226.66,6.56596509]
[1733967870719,2.06,226.73,226.68,6.56596509]
[1733967871211,6.56596509,226.75,226.68,6.56596509]
[1733967871413,2.06,226.74,226.68,6.56596509]
[1733967872910,45.86,226.82,226.72,6.56596509]
[1733967873119,6.56596509,226.79,226.72,6.56596509]
[1733967873324,2.06,226.78,226.72,6.56596509]
[1733967874720,4.2632,226.78,226.72,8.76956509]
[1733967875019,4.2632,226.78,226.74,6.56596509]
[1733967876818,4.2632,226.78,226.73,2.2036]
[1733967877120,2.2032,226.77,226.73,2.2036]
[1733967879617,2.2032,226.77,226.72,2.2036]
[1733967881021,2.2033,226.76,226.72,2.2036]
[1733967881614,2.2035,226.74,226.67,2.8766]
[1733967881815,2.2035,226.74,226.7,6.56596509]
[1733967882615,2.2035,226.74,226.7,8.76976509]
[1733967883623,2.2035,226.74,226.7,2.2038]
[1733967883819,2.2035,226.74,226.7,8.76976509]
[1733967887621,2.2035,226.74,226.7,6.56596509]
[1733967887926,2.2035,226.74,226.71,8.76966509]
[1733967888929,2.2032,226.77,226.73,2.2036]
[1733967889930,4.2631,226.78,226.74,2.2035]
[1733967890327,8.62596509,226.78,226.67,2.8766]
[1733967890525,8.62596509,226.78,226.71,6.56596509]
[1733967890731,2.2033,226.76,226.72,2.2036]
[1733967891626,2.2035,226.75,226.7,2.2038]
[1733967891830,8.62596509,226.76,226.7,2.2038]
[1733967892328,8.62596509,226.76,226.69,6.56596509]
[1733967892629,6.56596509,226.74,226.67,8.01756509]
[1733967893734,2.2037,226.72,226.67,8.01756509]
[1733967893930,6.56596509,226.72,226.67,1.4516]
[1733967894133,2.2038,226.71,226.66,2.2042]
[1733967894329,4.2638,226.71,226.66,2.2042]
[1733967895131,2.06,226.71,226.66,2.2042]
[1733967895336,2.2039,226.7,226.66,2.2042]
[1733967896036,2.06,226.71,226.66,2.2042]
[1733967896037,2.2038,226.71,226.66,8.77016509]
[1733967900441,6.56596509,226.72,226.64,6.56596509]
[1733967900736,6.56596509,226.7,226.64,6.56596509]
[1733967900935,2.2042,226.67,226.62,10.11926509]
[1733967901134,8.62596509,226.68,226.62,10.11926509]
[1733967902630,2.2043,226.66,226.62,10.11926509]
[1733967904541,8.62596509,226.68,226.56,2.06]
[1733967904736,6.56596509,226.65,226.58,6.56596509]
[1733967905339,6.56596509,226.65,226.57,2.205]
[1733967905637,6.56596509,226.63,226.57,8.77096509]
[1733967905937,2.06,226.62,226.57,8.77096509]
[1733967906735,2.2048,226.61,226.57,8.77096509]
[1733967906941,2.2048,226.61,226.53,4.2029]
[1733967906942,2.06,226.62,226.56,8.77106509]
[1733967907444,6.56596509,226.61,226.53,12.97426509]
[1733967907656,6.56596509,226.59,226.53,6.4083]
[1733967907941,6.56596509,226.59,226.53,3.5587]
[1733967908334,6.56596509,226.57,226.49,2.2058]
[1733967908543,6.56596509,226.57,226.47,5.25301276]
[1733967908544,6.56596509,226.55,226.47,11.81897785]
[1733967908733,8.62596509,226.55,226.47,6.56596509]
[1733967909042,2.2056,226.52,226.48,2.206]
[1733967909741,2.2055,226.54,226.49,2.2059]
[1733967910933,5.18708453,226.65,226.49,6.56596509]
[1733967911133,2.2053,226.56,226.49,6.56596509]
[1733967911332,8.62596509,226.57,226.49,6.56596509]
[1733967911539,2.2052,226.56,226.51,2.2056]
[1733967911940,8.62596509,226.57,226.51,2.2056]
[1733967912541,2.2052,226.56,226.51,2.2056]
[1733967912940,8.77116509,226.56,226.51,2.2056]
[1733967913542,6.56596509,226.54,226.51,2.2056]
[1733967914143,6.56596509,226.54,226.49,2.2058]
[1733967919940,6.56596509,226.54,226.46,11.78429392]
[1733967920741,8.77136509,226.54,226.48,2.206]
[1733967921835,4.1579,226.64,226.52,6.56596509]
[1733967922137,4.1579,226.64,226.54,6.56596509]
[1733967922138,6.56596509,226.61,226.54,6.56596509]
[1733967922648,8.62596509,226.63,226.56,6.56596509]
[1733967922843,1.3655,226.73,226.58,6.56596509]
[1733967922844,2.06,226.65,226.58,6.56596509]
[1733967923058,2.7818,226.72,226.58,6.56596509]
[1733967923059,8.62596509,226.66,226.6,2.2048]
[1733967923248,2.2042,226.67,226.58,6.56596509]
[1733967923542,2.2042,226.67,226.6,6.56596509]
[1733967923543,8.77016509,226.67,226.6,6.56596509]
[1733967924245,45.88,226.91,226.66,6.56596509]
[1733967924438,6.56596509,226.73,226.6,2.06]
[1733967924645,6.56596509,226.71,226.64,2.2044]
[1733967924844,6.56596509,226.71,226.65,6.56596509]
[1733967926245,8.76976509,226.71,226.65,6.56596509]
[1733967926449,6.56596509,226.69,226.6,2.06]
[1733967926640,6.56596509,226.67,226.6,8.62596509]
[1733967926844,8.77006509,226.67,226.61,2.2046]
[1733967927444,6.56596509,226.67,226.61,2.2046]
[1733967927751,8.76996509,226.69,226.62,8.77056509]
[1733967928745,6.56596509,226.67,226.62,2.2046]
[1733967928942,6.56596509,226.67,226.6,13.89593961]
[1733967929649,2.06,226.69,226.6,13.89593961]
[1733967929851,6.56596509,226.67,226.61,2.2047]
[1733967930350,6.56596509,226.65,226.6,6.56596509]
[1733967930551,6.56596509,226.63,226.56,6.56596509]
[1733967931342,8.77056509,226.63,226.56,8.77116509]
[1733967932451,6.56596509,226.63,226.56,8.77116509]
[1733967933651,2.2047,226.61,226.56,8.77116509]
[1733967934351,6.56596509,226.61,226.54,6.1781]
[1733967934549,6.56596509,226.59,226.52,6.56596509]
[1733967934754,6.56596509,226.57,226.51,2.06]
[1733967934950,6.56596509,226.59,226.53,2.2055]
[1733967935354,6.56596509,226.59,226.52,6.56596509]
[1733967935562,8.77096509,226.59,226.54,2.2054]
[1733967936353,8.77096509,226.59,226.52,6.56596509]
[1733967936354,6.56596509,226.59,226.52,6.56596509]
[1733967936655,2.205,226.58,226.53,2.2055]
[1733967938355,2.205,226.58,226.54,2.2054]
[1733967938562,2.06,226.61,226.54,6.56596509]
[1733967938751,6.56596509,226.62,226.54,6.56596509]
[1733967938959,2.2045,226.64,226.58,6.56596509]
[1733967940163,2.2045,226.64,226.59,2.2049]
[1733967941061,6.56596509,226.61,226.56,1.3356]
[1733967941355,6.56596509,226.59,226.56,1.3356]
[1733967941757,8.77086509,226.59,226.56,1.3356]
[1733967943457,8.77086509,226.59,226.54,2.2053]
[1733967945062,2.2049,226.59,226.53,6.56596509]
[1733967945263,2.2049,226.59,226.55,2.2053]
[1733967948158,6.56596509,226.61,226.53,6.56596509]
[1733967948366,2.2051,226.58,226.53,8.77136509]
[1733967948661,2.2051,226.58,226.53,6.56596509]
[1733967948864,2.2051,226.58,226.54,2.2054]
[1733967951561,6.56596509,226.55,226.47,1.4451]
[1733967951767,6.56596509,226.53,226.47,1.4451]
[1733967951970,6.56596509,226.53,226.46,11.90520845]
[1733967952161,6.56596509,226.51,226.46,5.33924336]
[1733967952464,6.56596509,226.51,226.47,2.206]
[1733967953165,6.56596509,226.51,226.46,5.33924336]
[1733967953566,8.77166509,226.51,226.47,2.2061]
[1733967954265,8.77166509,226.51,226.44,6.56596509]
[1733967954266,2.2059,226.5,226.45,2.2062]
[1733967954570,6.56596509,226.51,226.45,2.2062]
[1733967955568,2.2059,226.49,226.45,2.2062]
[1733967955765,2.2059,226.49,226.45,7.50549073]
[1733967956459,6.56596509,226.51,226.45,5.29929073]
[1733967956662,2.2061,226.48,226.43,6.56596509]
[1733967957763,2.2061,226.48,226.43,8.77236509]
[1733967957963,6.56596509,226.52,226.45,6.56596509]
[1733967958371,8.77156509,226.52,226.47,2.2061]
[1733967958667,1.4008,226.55,226.47,6.56596509]
[1733967958867,6.56596509,226.56,226.49,6.56596509]
[1733967959668,6.56596509,226.56,226.51,2.2057]
[1733967959669,2.2054,226.55,226.51,2.2057]
[1733967960569,2.2054,226.55,226.5,2.2058]
[1733967960964,2.2054,226.55,226.49,6.56596509]
[1733967960965,6.56596509,226.54,226.47,6.56596509]
[1733967961268,6.56596509,226.54,226.47,8.77206509]
[1733967961566,8.77166509,226.52,226.47,2.2061]
[1733967961972,6.56596509,226.52,226.47,2.2061]
[1733967962869,8.77156509,226.52,226.47,2.2061]
[1733967964173,6.56596509,226.52,226.47,2.2061]
[1733967964472,2.2057,226.51,226.47,2.2061]
[1733967965172,2.2057,226.51,226.48,2.206]
[1733967966175,1.3941,226.61,226.45,6.56596509]
[1733967966372,2.06,226.6,226.51,2.2057]
[1733967966675,6.56596509,226.56,226.49,6.56596509]
[1733967966876,2.2055,226.53,226.49,2.2059]
[1733967967277,2.2055,226.53,226.47,6.56596509]
[1733967967578,6.56596509,226.54,226.47,6.56596509]
[1733967968279,2.2056,226.52,226.47,6.56596509]
[1733967969379,2.2056,226.52,226.48,2.2059]
[1733967969878,2.2056,226.52,226.47,6.56596509]
[1733967970670,2.2056,226.52,226.49,2.2059]
[1733967970974,6.56596509,226.54,226.47,6.56596509]
[1733967971178,6.56596509,226.52,226.47,2.2061]
[1733967971477,6.56596509,226.48,226.32,18.32359281]
[1733967971681,6.56596509,226.35,226.26,2.6723]
[1733967971981,2.2078,226.3,226.27,2.20974941]
[1733967972376,2.06,226.34,226.27,2.20974941]
[1733967972579,6.56596509,226.3,226.27,2.20974941]
[1733967973379,2.2076,226.32,226.27,2.20974941]
[1733967973675,10.30927706,226.49,226.27,2.20974941]
[1733967973676,2.06,226.36,226.27,2.20974941]
[1733967974479,2.06,226.36,226.27,4.41774941]
[1733967975076,2.06,226.36,226.27,2.20974941]
[1733967975478,2.2074,226.34,226.27,2.20974941]
[1733967975779,10.30927706,226.35,226.27,2.20974941]
[1733967976082,12.51657706,226.35,226.28,2.2079]
[1733967976480,12.51657706,226.35,226.29,2.20955411]
[1733967976683,10.30927706,226.35,226.29,4.41735411]
[1733967976882,10.30927706,226.35,226.29,2.20955411]
[1733967978783,2.2074,226.34,226.29,2.20955411]
[1733967980787,4.2673,226.36,226.29,2.20955411]
[1733967980990,2.06,226.36,226.29,2.20955411]
[1733967981879,2.06,226.36,226.29,4.41735411]
[1733967982597,2.2073,226.35,226.29,4.41735411]
[1733967983391,4.2672,226.36,226.3,2.2077]
[1733967984586,2.2073,226.35,226.29,2.20955411]
[1733967985682,2.2073,226.35,226.29,4.41735411]
[1733967986786,2.2073,226.35,226.29,2.2078]
[1733967988988,2.2072,226.37,226.27,3.4185]
[1733967989188,2.08,226.38,226.27,3.4185]
[1733967990689,2.2072,226.36,226.27,3.4185]
[1733967990880,2.08,226.38,226.27,3.4185]
[1733967991493,2.08,226.38,226.31,2.2076]
[1733967991791,10.30927706,226.39,226.27,3.4185]
[1733967991984,12.38927706,226.39,226.27,3.4185]
[1733967992397,2.2073,226.35,226.27,3.4185]
[1733967992785,10.30927706,226.36,226.29,2.2078]
[1733967992991,10.30927706,226.36,226.27,3.4185]
[1733967993192,10.30927706,226.33,226.2,0.1593]
[1733967993489,10.30927706,226.3,226.24,7.38753897]
[1733967994090,2.208,226.28,226.24,7.38753897]
[1733967994793,12.51707706,226.3,226.25,2.2082]
[1733967995190,6.59905607,226.28,226.25,2.2082]
[1733967998599,8.80685607,226.3,226.26,2.2081]
[1733967998800,2.2074,226.34,226.26,6.59905607]
[1733967999102,6.59905607,226.34,226.27,1.3905]
[1733968000505,6.59905607,226.32,226.27,1.3905]
[1733968001203,6.59905607,226.32,226.29,2.2078]
[1733968001204,8.80665607,226.32,226.29,2.2078]
[1733968001704,6.59905607,226.32,226.29,2.2078]
[1733968003907,6.59905607,226.3,226.27,1.3905]
[1733968004697,8.80685607,226.3,226.27,1.3905]
[1733968005497,2.2079,226.29,226.25,2.2082]
[1733968005703,6.59905607,226.3,226.25,2.2082]
[1733968006496,6.59905607,226.3,226.24,5.17923897]
[1733968006694,6.59905607,226.28,226.22,1.4003]
[1733968007606,2.2081,226.26,226.22,3.6088]
[1733968007809,2.2081,226.26,226.22,2.2085]
[1733968009709,2.2081,226.26,226.23,2.2084]
[1733968010306,8.80705607,226.28,226.23,2.2084]
[1733968011504,2.2083,226.24,226.21,5.3609381]
[1733968011708,8.80735607,226.24,226.2,0.1593]
[1733968011908,6.59905607,226.24,226.2,0.1593]
[1733968013199,2.2085,226.22,226.2,0.1593]
[1733968013414,8.80755607,226.22,226.2,0.1593]
[1733968014810,8.80755607,226.22,226.18,2.2088]
[1733968016313,8.80755607,226.22,226.19,2.2088]
[1733968016612,2.2085,226.22,226.19,2.2088]
[1733968017709,2.2084,226.23,226.19,2.2088]
[1733968018105,8.67905607,226.27,226.22,2.2085]
[1733968018310,6.59905607,226.27,226.16,6.64045029]
[1733968018619,8.67905607,226.26,226.19,6.59905607]
[1733968018814,8.67905607,226.26,226.22,2.2085]
[1733968019206,2.2079,226.28,226.24,2.2083]
[1733968019518,2.08,226.3,226.23,6.59905607]
[1733968020015,2.08,226.31,226.25,6.59905607]
[1733968020514,4.2877,226.31,226.27,2.208]
[1733968022206,2.2077,226.31,226.27,2.208]
[1733968022405,1.1029,226.41,226.27,6.59905607]
[1733968022709,6.59905607,226.35,226.29,6.59905607]
[1733968022910,6.59905607,226.35,226.29,2.2077]
[1733968022911,8.67905607,226.35,226.29,2.2077]
[1733968023211,6.59905607,226.33,226.29,2.2077]
[1733968024611,6.59905607,226.33,226.3,2.2077]
[1733968025114,6.59905607,226.33,226.27,6.59905607]
[1733968025315,6.59905607,226.35,226.31,2.2076]
[1733968026115,6.59905607,226.35,226.32,2.2076]
[1733968026314,6.59905607,226.35,226.27,6.59905607]
[1733968026709,6.59905607,226.33,226.3,2.2077]
[1733968027721,8.80635607,226.35,226.31,2.2076]
[1733968027913,6.59905607,226.35,226.27,6.59905607]
[1733968029514,8.80635607,226.35,226.3,2.2077]
[1733968030116,8.80635607,226.35,226.31,2.2076]
[1733968031219,6.59905607,226.35,226.27,6.59905607]
[1733968031424,6.59905607,226.33,226.25,7.97045607]
[1733968031922,6.59905607,226.33,226.29,2.2078]
[1733968032621,6.59905607,226.33,226.3,2.2077]
[1733968033023,6.59905607,226.33,226.27,6.59905607]
[1733968033221,6.59905607,226.35,226.27,6.59905607]
[1733968034224,8.80635607,226.35,226.31,2.2076]
[1733968035324,8.80635607,226.35,226.3,2.2077]
[1733968035325,2.2074,226.34,226.3,2.2077]
[1733968036627,2.08,226.36,226.25,1.3714]
[1733968036628,6.59905607,226.33,226.25,1.3714]
[1733968036821,6.59905607,226.33,226.28,2.2079]
[1733968037522,2.2077,226.31,226.28,2.2079]
[1733968038427,8.67905607,226.31,226.16,5.24775029]
[1733968038627,6.59905607,226.29,226.2,2.08]
[1733968038928,6.59905607,226.29,226.22,6.59905607]
[1733968039128,8.80695607,226.29,226.22,6.59905607]
[1733968039827,8.80695607,226.29,226.25,2.2082]
[1733968041027,8.80695607,226.29,226.26,2.2081]
[1733968041720,4.2877,226.31,226.27,2.208]
[1733968041926,2.08,226.31,226.24,6.59905607]
[1733968043129,4.2877,226.31,226.26,2.2081]
[1733968043429,6.59905607,226.3,226.26,2.2081]
[1733968043833,6.59905607,226.3,226.22,6.59905607]
[1733968043834,6.59905607,226.28,226.2,6.76067607]
[1733968044125,2.08,226.31,226.2,0.16162]
[1733968044126,6.59905607,226.26,226.2,0.16162]
[1733968044329,8.67905607,226.26,226.2,0.16162]
[1733968045732,2.2084,226.24,226.2,2.37022]